bitfinex/quotes_SOLUSD_20230702
["timestamp","ask_amount","ask_price","bid_price","bid_amount"]
[1688274233245,21.974,19.25,19.23,21.996]
[1688274233246,55.0,19.249,19.23,21.996]
[1688274233553,181.828,19.244,19.231,20.0]
[1688274233749,181.828,19.244,19.231,41.994]
[1688274234048,181.828,19.244,19.231,19.5]
[1688274234249,55.0,19.243,19.228,56.643]
[1688274234442,78.592,19.239,19.228,21.999]
[1688274234634,21.987,19.239,19.228,21.999]
[1688274234834,21.987,19.239,19.23,19.09]
[1688274235037,21.987,19.239,19.232,21.993]
[1688274235440,56.562,19.254,19.24,17.1852631]
[1688274235749,21.975,19.249,19.24,58.4392631]
[1688274235948,21.975,19.249,19.24,39.1692631]
[1688274236136,21.975,19.249,19.241,20.0]
[1688274236336,21.975,19.249,19.242,21.982]
[1688274237658,21.975,19.249,19.241,21.983]
[1688274237835,21.975,19.249,19.242,21.982]
[1688274238037,21.975,19.249,19.24,17.1852631]
[1688274238246,21.975,19.249,19.241,41.983]
[1688274239346,21.975,19.249,19.24,17.1852631]
[1688274239658,21.975,19.249,19.241,20.0]
[1688274240157,55.0,19.248,19.241,20.0]
[1688274240448,78.561,19.246,19.241,20.0]
[1688274241247,21.978,19.246,19.241,20.0]
[1688274241443,91.8645,19.26,19.241,41.984]
[1688274241644,21.973,19.251,19.241,41.984]
[1688274241848,21.973,19.251,19.246,21.977]
[1688274242463,21.973,19.251,19.241,20.0]
[1688274243041,21.973,19.251,19.24,17.1852631]
[1688274243240,75.0,19.25,19.24,17.1852631]
[1688274243440,78.557,19.247,19.24,17.1852631]
[1688274243645,21.977,19.247,19.24,39.1702631]
[1688274244050,21.977,19.247,19.24,17.1852631]
[1688274244760,159.812,19.248,19.24,17.1852631]
[1688274244761,78.568,19.245,19.24,17.1852631]
[1688274246860,55.0,19.244,19.24,17.1852631]
[1688274247045,78.574,19.243,19.24,17.1852631]
[1688274248263,78.574,19.243,19.231,21.994]
[1688274248441,78.574,19.243,19.225,454.57896006]
[1688274248442,78.574,19.243,19.225,397.93696006]
[1688274248756,181.888,19.237,19.225,397.93696006]
[1688274249266,78.615,19.233,19.225,397.93696006]
[1688274249647,21.993,19.233,19.225,397.93696006]
[1688274250345,55.0,19.232,19.225,397.93696006]
[1688274250660,8.13975785,19.243,19.225,419.93896006]
[1688274250860,103.248,19.245,19.226,20.0]
[1688274251055,56.572,19.25,19.231,21.994]
[1688274251248,90.8338,19.254,19.231,21.994]
[1688274251448,90.8338,19.254,19.232,30.83719922]
[1688274251654,21.975,19.25,19.238,21.987]
[1688274251963,21.975,19.25,19.239,75.0]
[1688274252146,21.975,19.25,19.242,21.982]
[1688274253243,21.975,19.25,19.232,114.15219922]
[1688274253447,21.975,19.25,19.236,21.99]
[1688274253647,21.975,19.25,19.24,21.984]
[1688274253860,21.975,19.25,19.243,21.981]
[1688274254458,21.973,19.251,19.243,21.981]
[1688274254668,56.551,19.257,19.248,21.975]
[1688274254850,21.971,19.253,19.247,21.976]
[1688274255050,21.971,19.253,19.244,55.0]
[1688274255251,21.971,19.253,19.245,21.979]
[1688274255653,21.971,19.253,19.241,20.0]
[1688274255966,21.971,19.253,19.244,21.98]
[1688274256168,56.529,19.265,19.247,21.976]
[1688274256365,103.121,19.269,19.246,103.239]
[1688274256366,21.962,19.261,19.253,21.969]
[1688274256948,21.962,19.261,19.248,20.0]
[1688274257149,21.962,19.261,19.249,76.974]
[1688274257359,21.962,19.261,19.252,21.971]
[1688274257759,21.962,19.261,19.253,55.0]
[1688274258071,21.962,19.261,19.255,21.967]
[1688274258265,95.6751,19.267,19.255,21.968]
[1688274258266,21.958,19.264,19.255,21.968]
[1688274258473,21.961,19.261,19.249,111.572]
[1688274258656,21.961,19.261,19.247,103.234]
[1688274258657,21.961,19.261,19.25,75.0]
[1688274258969,21.961,19.261,19.253,21.969]
[1688274259265,21.961,19.261,19.255,21.967]
[1688274259470,21.961,19.261,19.25,75.0]
[1688274259674,95.6751,19.267,19.255,78.524]
[1688274259973,21.959,19.263,19.25,75.0]
[1688274260167,21.959,19.263,19.253,21.97]
[1688274260667,22.88264278,19.262,19.238,56.604]
[1688274260866,181.72,19.255,19.235,82.84301031]
[1688274261170,99.6783,19.254,19.232,103.316]
[1688274261375,21.974,19.25,19.238,21.986]
[1688274261552,21.97,19.254,19.24,9.65]
[1688274261756,21.969,19.254,19.244,21.98]
[1688274261958,21.968,19.256,19.245,20.0]
[1688274262167,21.968,19.256,19.248,21.975]
[1688274262361,21.968,19.256,19.249,20.0]
[1688274262563,21.968,19.256,19.248,21.975]
[1688274263271,21.968,19.256,19.244,10.83719922]
[1688274263476,21.968,19.256,19.245,55.0]
[1688274263973,21.968,19.256,19.248,21.975]
[1688274264977,21.968,19.256,19.249,76.974]
[1688274265168,21.968,19.256,19.25,20.0]
[1688274265367,21.968,19.256,19.243,21.981]
[1688274265762,21.968,19.256,19.241,21.984]
[1688274265964,114.0728,19.256,19.24,21.984]
[1688274266163,114.0728,19.256,19.241,20.0]
[1688274266358,114.0728,19.256,19.241,41.983]
[1688274266560,55.0,19.255,19.241,20.0]
[1688274266760,55.0,19.255,19.236,21.989]
[1688274266761,78.542,19.251,19.236,21.989]
[1688274267062,78.56,19.247,19.237,20.0]
[1688274267370,78.56,19.247,19.234,88.248]
[1688274267577,78.56,19.247,19.234,66.257]
[1688274267578,146.3091,19.246,19.234,66.257]
[1688274267763,21.982,19.243,19.234,66.257]
[1688274268163,21.982,19.243,19.227,82.13389462]
[1688274268463,21.982,19.243,19.228,20.0]
[1688274269058,146.3091,19.246,19.22,36.2266283]
[1688274269059,21.987,19.238,19.22,36.2266283]
[1688274269274,21.987,19.238,19.21,36.35228024]
[1688274269461,78.618,19.232,19.22,78.598]
[1688274269664,78.618,19.232,19.22,22.007]
[1688274269968,78.618,19.232,19.22,21.007]
[1688274270377,78.618,19.232,19.221,20.0]
[1688274270676,78.618,19.232,19.222,22.005]
[1688274270975,78.618,19.232,19.221,22.006]
[1688274271275,21.994,19.232,19.221,22.006]
[1688274272077,21.994,19.232,19.221,32.84319922]
[1688274272278,21.994,19.232,19.222,10.83719922]
[1688274272488,21.994,19.233,19.225,22.002]
[1688274272770,21.986,19.239,19.225,22.002]
[1688274272974,21.986,19.239,19.226,85.83719922]
[1688274273159,56.585,19.246,19.229,21.996]
[1688274273366,56.585,19.246,19.23,84.65]
[1688274273570,21.983,19.243,19.234,21.991]
[1688274273766,21.981,19.244,19.235,55.0]
[1688274273961,9.56,19.26,19.235,55.0]
[1688274273962,9.56,19.26,19.237,21.988]
[1688274274164,193.3876,19.257,19.237,21.988]
[1688274274488,193.3876,19.257,19.236,56.611]
[1688274274489,78.549,19.249,19.236,21.989]
[1688274274665,78.549,19.249,19.23,86.278]
[1688274274866,168.7496,19.249,19.234,21.991]
[1688274275059,168.7496,19.249,19.237,21.987]
[1688274275465,168.7496,19.249,19.238,85.83719922]
[1688274275466,21.975,19.249,19.238,85.83719922]
[1688274275765,21.975,19.249,19.238,21.986]
[1688274276472,21.975,19.249,19.239,75.0]
[1688274276675,21.975,19.249,19.237,21.988]
[1688274276873,21.975,19.249,19.238,20.0]
[1688274277071,21.975,19.249,19.239,55.0]
[1688274277270,21.975,19.249,19.241,21.983]
[1688274278078,21.973,19.251,19.245,21.978]
[1688274278682,21.973,19.251,19.241,21.984]
[1688274279075,21.973,19.251,19.242,55.0]
[1688274279277,21.973,19.251,19.244,21.98]
[1688274279678,21.973,19.251,19.243,21.981]
[1688274279875,161.99992183,19.279,19.243,21.981]
[1688274279876,56.512,19.271,19.244,206.12757231]
[1688274280290,56.512,19.271,19.245,30.83719922]
[1688274280585,21.955,19.267,19.252,78.533]
[1688274281093,21.955,19.267,19.257,21.965]
[1688274281590,21.955,19.267,19.255,21.967]
[1688274281774,21.955,19.267,19.249,56.572]
[1688274281969,21.955,19.267,19.251,21.971]
[1688274282389,21.955,19.267,19.237,103.288]
[1688274282390,34.84479,19.266,19.237,103.288]
[1688274282568,181.7,19.257,19.242,21.982]
[1688274282770,181.7,19.257,19.233,103.307]
[1688274282771,181.7,19.257,19.241,21.983]
[1688274282968,21.972,19.252,19.241,21.983]
[1688274283183,21.972,19.252,19.232,21.993]
[1688274283184,14.84479,19.251,19.232,21.993]
[1688274283392,78.564,19.246,19.232,21.993]
[1688274283581,150.0602,19.245,19.232,21.993]
[1688274283784,21.984,19.242,19.226,56.639]
[1688274284091,21.984,19.242,19.23,21.996]
[1688274284877,14.84479,19.251,19.242,10.83719922]
[1688274285087,2.99992183,19.279,19.251,21.972]
[1688274285272,103.116,19.27,19.251,21.972]
[1688274285482,21.954,19.268,19.251,21.972]
[1688274285880,14.84479,19.278,19.259,21.962]
[1688274286275,14.84479,19.278,19.258,21.964]
[1688274286495,14.84479,19.278,19.257,21.965]
[1688274286674,14.84479,19.278,19.252,235.554423]
[1688274286675,14.84479,19.278,19.256,21.966]
[1688274287275,14.84479,19.278,19.254,21.969]
[1688274287276,9.65,19.27,19.254,21.969]
[1688274287482,116.31271183,19.269,19.247,23.785468]
[1688274287678,14.84479,19.268,19.247,23.785468]
[1688274287888,21.962,19.26,19.249,21.974]
[1688274288273,21.962,19.26,19.241,56.596]
[1688274288477,21.962,19.26,19.238,10.83719922]
[1688274288478,21.971,19.253,19.244,21.98]
[1688274288885,21.974,19.25,19.241,21.983]
[1688274289092,21.973,19.251,19.243,21.981]
[1688274289299,270.12119,19.259,19.243,21.981]
[1688274289300,55.0,19.252,19.243,21.981]
[1688274289495,76.972,19.252,19.243,21.981]
[1688274289697,21.973,19.251,19.235,103.298]
[1688274289882,21.973,19.251,19.236,21.989]
[1688274289883,14.84479,19.25,19.236,21.989]
[1688274290078,21.978,19.247,19.236,21.989]
[1688274290292,55.0,19.246,19.236,21.989]
[1688274290490,21.982,19.243,19.236,21.989]
[1688274290794,21.98,19.245,19.236,21.989]
[1688274291093,21.979,19.245,19.236,21.989]
[1688274291997,55.0,19.244,19.236,21.989]
[1688274292209,21.983,19.242,19.236,21.989]
[1688274292699,21.983,19.243,19.236,21.989]
[1688274293480,97.1004,19.248,19.236,21.989]
[1688274293893,78.574,19.243,19.23,21.996]
[1688274294085,24.49479,19.25,19.223,103.361]
[1688274294086,21.989,19.237,19.223,160.01]
[1688274294285,21.989,19.237,19.228,21.998]
[1688274294888,21.989,19.237,19.221,56.599]
[1688274295196,21.989,19.237,19.222,22.005]
[1688274295695,21.989,19.237,19.222,32.84219922]
[1688274296405,21.989,19.237,19.223,10.83719922]
[1688274296606,21.989,19.237,19.227,22.0]
[1688274296896,21.989,19.237,19.223,10.83719922]
[1688274297095,78.626,19.23,19.213,56.677]
[1688274297301,78.626,19.23,19.209,103.435]
[1688274297302,78.626,19.23,19.216,420.13533769]
[1688274297483,22.002,19.226,19.216,398.12333769]
[1688274298793,56.624,19.233,19.216,398.12333769]
[1688274298994,21.999,19.229,19.216,398.12333769]
[1688274299196,55.0,19.228,19.216,148.12333769]
[1688274299393,182.007,19.225,19.201,382.63326687]
[1688274299612,69.84479,19.224,19.201,382.63326687]
[1688274299908,182.075,19.218,19.201,382.63326687]
[1688274300094,55.0,19.217,19.201,22.029]
[1688274300288,22.013,19.216,19.2,22.03]
[1688274300488,22.013,19.216,19.194,439.34808181]
[1688274300489,55.0,19.215,19.194,439.34808181]
[1688274300686,22.022,19.208,19.194,439.34808181]
[1688274300885,22.025,19.206,19.194,406.38508181]
[1688274301104,22.025,19.206,19.194,384.34808181]
[1688274301309,22.029,19.202,19.194,384.34808181]
[1688274301608,56.696,19.208,19.194,384.34808181]
[1688274301944,14.84479,19.214,19.187,160.242]
[1688274301945,22.025,19.206,19.195,22.036]
[1688274302507,22.025,19.206,19.184,10.83719922]
[1688274302508,22.033,19.199,19.183,56.768]
[1688274302690,22.033,19.199,19.182,22.051]
[1688274302691,14.84479,19.198,19.182,22.051]
[1688274302891,22.04,19.192,19.182,22.051]
[1688274303110,55.0,19.191,19.182,22.051]
[1688274303294,14.84479,19.198,19.182,22.051]
[1688274303295,56.729,19.197,19.182,22.051]
[1688274303500,55.0,19.196,19.182,22.051]
[1688274303806,22.041,19.192,19.182,22.051]
[1688274304116,69.84479,19.191,19.171,384.80919526]
[1688274304407,22.042,19.191,19.173,182.495]
[1688274304788,160.226,19.198,19.173,182.495]
[1688274304789,56.726,19.198,19.173,182.495]
[1688274305007,9.66,19.21,19.173,182.495]
[1688274305008,22.042,19.19,19.173,182.495]
[1688274305198,22.042,19.19,19.173,78.86]
[1688274305386,56.743,19.192,19.173,78.86]
[1688274305589,55.0,19.196,19.173,78.86]
[1688274305793,22.043,19.19,19.173,78.86]
[1688274306006,22.043,19.19,19.174,20.0]
[1688274306311,22.043,19.19,19.178,22.055]
[1688274306491,22.043,19.19,19.174,76.793]
[1688274306492,22.043,19.19,19.182,22.051]
[1688274306692,22.042,19.191,19.182,22.051]
[1688274306892,160.225,19.198,19.182,22.051]
[1688274307093,247.63075763,19.231,19.174,76.737]
[1688274307094,160.152,19.207,19.187,78.8]
[1688274307395,9.66,19.22,19.183,55.0]
[1688274307396,22.026,19.204,19.183,55.0]
[1688274307591,78.732,19.204,19.187,56.755]
[1688274307796,78.732,19.204,19.184,20.0]
[1688274307797,78.732,19.204,19.191,22.04]
[1688274308003,78.732,19.204,19.184,56.766]
[1688274308211,78.732,19.204,19.189,22.043]
[1688274308512,78.732,19.204,19.173,25.64244128]
[1688274308711,135.489,19.204,19.181,56.757]
[1688274308911,93.6509,19.219,19.19,78.79]
[1688274309210,22.018,19.212,19.19,182.333]
[1688274309710,22.018,19.212,19.197,22.034]
[1688274309903,9.65,19.23,19.197,22.034]
[1688274309904,22.013,19.216,19.198,75.0]
[1688274310105,22.014,19.215,19.201,103.483]
[1688274310303,22.015,19.215,19.203,78.736]
[1688274310515,78.689,19.215,19.203,22.027]
[1688274310809,78.689,19.215,19.203,22.026]
[1688274310998,78.689,19.215,19.202,22.028]
[1688274311194,78.689,19.215,19.198,75.0]
[1688274311403,78.689,19.215,19.2,22.031]
[1688274311613,78.689,19.215,19.201,20.0]
[1688274311909,78.689,19.215,19.198,75.0]
[1688274312216,22.015,19.215,19.198,97.032]
[1688274312604,22.015,19.215,19.198,153.699]
[1688274313409,22.015,19.215,19.198,131.667]
[1688274313593,22.015,19.215,19.198,97.033]
[1688274313789,22.015,19.215,19.186,29.3714131]
[1688274313790,22.015,19.215,19.186,26.3714131]
[1688274314007,56.669,19.224,19.192,22.039]
[1688274314008,78.731,19.205,19.192,22.039]
[1688274314394,78.731,19.205,19.186,56.758]
[1688274314593,78.753,19.2,19.188,22.043]
[1688274314795,78.753,19.2,19.187,22.045]
[1688274315403,78.753,19.2,19.17,9.59]
[1688274315611,78.753,19.2,19.18,22.053]
[1688274315795,78.753,19.2,19.18,78.82]
[1688274316612,78.753,19.2,19.186,22.046]
[1688274317211,22.032,19.2,19.186,22.046]
[1688274317414,22.032,19.2,19.187,20.0]
[1688274317612,22.032,19.2,19.19,22.041]
[1688274317814,22.032,19.2,19.191,55.0]
[1688274318015,56.703,19.206,19.193,22.038]
[1688274318199,56.703,19.206,19.194,55.0]
[1688274318515,22.028,19.203,19.194,77.037]
[1688274319398,22.027,19.204,19.194,77.037]
[1688274319593,22.025,19.206,19.194,77.037]
[1688274323113,22.023,19.207,19.194,77.037]
[1688274323317,96.5209,19.229,19.195,20.0]
[1688274323318,22.021,19.209,19.195,20.0]
[1688274323514,22.021,19.209,19.198,22.032]
[1688274323824,22.02,19.21,19.202,22.028]
[1688274324002,103.393,19.218,19.202,22.028]
[1688274324003,22.019,19.211,19.203,55.0]
[1688274324320,22.019,19.211,19.205,22.025]
[1688274324507,56.67,19.217,19.206,55.0]
[1688274324703,22.015,19.214,19.206,77.023]
[1688274324904,27.17094569,19.284,19.206,77.023]
[1688274324905,9.58,19.25,19.207,20.0]
[1688274325109,21.988,19.238,19.21,9.66]
[1688274325409,21.988,19.238,19.208,106.24617218]
[1688274325410,21.988,19.238,19.208,56.693]
[1688274325728,21.988,19.238,19.212,22.016]
[1688274326030,114.73519,19.237,19.213,55.0]
[1688274326205,181.956,19.23,19.213,22.015]
[1688274326519,181.956,19.23,19.202,56.711]
[1688274326704,181.956,19.23,19.19,9.66]
[1688274326705,206.38079,19.23,19.19,9.66]
[1688274326909,14.84479,19.229,19.201,22.029]
[1688274327104,182.042,19.221,19.201,22.029]
[1688274327517,78.664,19.221,19.201,22.029]
[1688274327827,78.664,19.221,19.201,78.747]
[1688274328004,78.664,19.221,19.207,22.022]
[1688274328514,22.007,19.221,19.211,22.017]
[1688274328718,22.007,19.221,19.212,55.0]
[1688274328918,22.007,19.221,19.213,22.015]
[1688274329117,22.007,19.221,19.208,55.0]
[1688274329318,22.007,19.221,19.209,42.02]
[1688274329522,22.007,19.221,19.21,55.0]
[1688274329721,22.007,19.221,19.213,22.016]
[1688274330231,103.33,19.23,19.214,55.0]
[1688274330412,22.006,19.223,19.218,22.009]
[1688274330909,2.99992183,19.252,19.218,22.009]
[1688274331226,78.593,19.238,19.219,75.0]
[1688274331405,78.593,19.238,19.221,56.653]
[1688274331726,78.593,19.238,19.224,22.002]
[1688274332112,78.593,19.238,19.225,55.0]
[1688274332411,78.593,19.238,19.226,22.001]
[1688274333207,21.987,19.238,19.226,22.001]
[1688274333620,21.987,19.238,19.219,123.282]
[1688274333621,21.987,19.238,19.219,20.0]
[1688274333821,21.987,19.238,19.221,56.656]
[1688274334007,21.987,19.238,19.225,22.002]
[1688274335621,21.987,19.238,19.229,21.997]
[1688274337625,21.67439845,19.261,19.229,21.997]
[1688274337830,103.198,19.255,19.234,78.608]
[1688274338133,98.4605,19.259,19.235,55.0]
[1688274338134,21.98,19.245,19.235,55.0]
[1688274338326,21.98,19.245,19.238,21.987]
[1688274338513,56.571,19.25,19.238,21.987]
[1688274339029,21.977,19.248,19.239,55.0]
[1688274339231,56.562,19.254,19.243,21.981]
[1688274339452,21.975,19.249,19.243,21.981]
[1688274339626,21.975,19.249,19.241,21.983]
[1688274340031,21.975,19.249,19.235,78.588]
[1688274340032,21.975,19.249,19.24,21.984]
[1688274340628,21.975,19.249,19.241,55.0]
[1688274340832,21.975,19.249,19.243,21.981]
[1688274341131,21.975,19.249,19.235,125.272]
[1688274341132,21.975,19.249,19.235,21.975]
[1688274341335,21.975,19.249,19.237,56.609]
[1688274341535,21.975,19.249,19.241,21.983]
[1688274341720,21.975,19.249,19.242,55.0]
[1688274341921,21.975,19.249,19.242,76.982]
[1688274342116,21.975,19.249,19.242,55.0]
[1688274342430,21.975,19.249,19.242,21.983]
[1688274342632,21.975,19.249,19.244,21.98]
[1688274342832,21.974,19.25,19.245,76.979]
[1688274343017,98.0894,19.269,19.246,55.0]
[1688274343224,21.969,19.254,19.246,55.0]
[1688274343420,21.97,19.253,19.242,10.83719922]
[1688274343730,21.97,19.253,19.242,21.982]
[1688274344539,55.0,19.252,19.237,10.83719922]
[1688274344842,55.0,19.252,19.22,38.49]
[1688274344843,78.554,19.248,19.234,21.991]
[1688274345023,55.0,19.247,19.231,21.995]
[1688274345338,55.0,19.247,19.225,56.643]
[1688274345339,78.576,19.243,19.225,56.643]
[1688274345537,78.576,19.243,19.228,21.998]
[1688274345718,78.594,19.238,19.221,10.83719922]
[1688274345923,78.594,19.238,19.226,22.0]
[1688274346326,78.594,19.238,19.226,22.001]
[1688274347119,21.987,19.238,19.227,55.0]
[1688274347341,21.987,19.238,19.226,55.0]
[1688274347540,21.987,19.238,19.225,55.0]
[1688274347739,21.987,19.238,19.227,21.999]
[1688274348640,21.987,19.238,19.224,22.001]
[1688274348826,21.987,19.238,19.222,22.005]
[1688274348827,55.0,19.237,19.222,22.005]
[1688274349030,55.0,19.237,19.205,159.0]
[1688274349031,78.616,19.233,19.217,10.83719922]
[1688274349338,78.616,19.233,19.2,29.66]
[1688274349339,20.0,19.232,19.202,56.711]
[1688274349528,20.0,19.232,19.201,114.31719922]
[1688274349529,182.019,19.223,19.203,30.0]
[1688274349727,182.019,19.223,19.204,22.025]
[1688274349922,75.0,19.222,19.203,10.83719922]
[1688274350122,182.083,19.217,19.203,22.027]
[1688274350543,182.083,19.217,19.201,10.83719922]
[1688274350544,55.0,19.216,19.195,56.731]
[1688274350843,78.71,19.21,19.199,44.058]
[1688274351337,78.71,19.21,19.199,10.83719922]
[1688274351643,78.71,19.21,19.193,22.038]
[1688274351829,78.736,19.204,19.192,22.039]
[1688274352031,78.736,19.204,19.191,22.04]
[1688274352223,78.736,19.204,19.19,10.83719922]
[1688274352626,78.736,19.204,19.188,22.044]
[1688274353127,78.736,19.204,19.188,32.88119922]
[1688274353333,78.736,19.204,19.185,124.420785]
[1688274353334,22.027,19.204,19.193,22.038]
[1688274353842,22.027,19.204,19.192,22.039]
[1688274354041,22.027,19.204,19.189,10.83719922]
[1688274354352,14.84479,19.203,19.185,20.853785]
[1688274354535,182.266,19.197,19.183,22.05]
[1688274354731,22.04,19.193,19.182,22.05]
[1688274355741,22.04,19.193,19.186,22.047]
[1688274355940,22.04,19.193,19.187,55.0]
[1688274357545,22.04,19.193,19.171,103.641]
[1688274357752,22.04,19.193,19.144,319.96718496]
[1688274357753,22.04,19.193,19.17,56.805]
[1688274358047,22.04,19.193,19.173,22.061]
[1688274358232,20.0,19.192,19.173,22.061]
[1688274358432,22.045,19.188,19.173,32.89819922]
[1688274358633,20.0,19.192,19.174,10.83719922]
[1688274358949,22.036,19.196,19.179,22.054]
[1688274359325,22.036,19.196,19.178,56.782]
[1688274359326,22.035,19.197,19.191,22.041]
[1688274359527,22.035,19.197,19.19,22.041]
[1688274359722,22.035,19.197,19.175,22.059]
[1688274359934,22.035,19.197,19.155,159.0]
[1688274359935,22.035,19.197,19.176,20.0]
[1688274360643,22.035,19.197,19.176,22.058]
[1688274360832,30.07285278,19.197,19.177,20.0]
[1688274361142,30.07285278,19.197,19.166,3.0]
[1688274361143,182.33,19.191,19.175,25.517042]
[1688274361445,182.33,19.191,19.171,22.064]
[1688274361651,182.33,19.191,19.165,160.495]
[1688274361652,182.33,19.191,19.172,22.062]
[1688274363139,182.33,19.191,19.165,56.821]
[1688274363449,190.36785278,19.191,19.168,22.067]
[1688274363646,182.33,19.191,19.169,20.0]
[1688274363855,182.33,19.191,19.173,22.061]
[1688274364141,190.36785278,19.191,19.17,22.064]
[1688274364332,182.392,19.184,19.169,20.0]
[1688274364534,182.392,19.184,19.161,56.833]
[1688274364755,22.058,19.177,19.167,22.069]
[1688274364933,22.058,19.177,19.168,20.0]
[1688274365343,22.058,19.177,19.167,20.0]
[1688274365546,22.058,19.177,19.164,22.071]
[1688274365748,22.058,19.177,19.166,22.07]
[1688274365929,22.058,19.177,19.161,56.833]
[1688274365930,22.058,19.177,19.167,20.0]
[1688274366349,22.058,19.177,19.163,56.827]
[1688274366544,22.058,19.177,19.164,20.0]
[1688274366853,22.058,19.177,19.164,22.071]
[1688274368352,22.058,19.177,19.157,103.719]
[1688274368353,125.671,19.177,19.157,103.719]
[1688274368649,125.671,19.177,19.163,22.072]
[1688274369545,22.058,19.177,19.163,22.072]
[1688274369847,22.057,19.177,19.164,20.0]
[1688274370040,22.057,19.177,19.167,22.068]
[1688274370241,22.052,19.182,19.167,22.068]
[1688274370448,95.9183,19.185,19.168,20.0]
[1688274370643,8.03785278,19.187,19.168,20.0]
[1688274370644,22.052,19.182,19.173,22.062]
[1688274371546,8.03785278,19.187,19.173,22.062]
[1688274371547,56.745,19.191,19.173,22.062]
[1688274371749,56.745,19.191,19.177,22.057]
[1688274372141,22.048,19.185,19.177,22.057]
[1688274372336,22.048,19.185,19.168,20.0]
[1688274372540,22.048,19.185,19.174,22.06]
[1688274373346,111.57685278,19.191,19.174,125.689]
[1688274373347,8.03785278,19.191,19.174,125.689]
[1688274373547,56.749,19.19,19.174,125.689]
[1688274373936,22.044,19.189,19.174,125.689]
[1688274374132,262.2877452,19.23,19.173,56.798]
[1688274374133,56.749,19.194,19.18,182.423]
[1688274374334,106.4367,19.21,19.189,182.337]
[1688274374534,22.024,19.207,19.189,22.043]
[1688274374948,22.024,19.207,19.188,56.752]
[1688274374949,22.024,19.207,19.193,22.038]
[1688274375258,36.55335,19.207,19.185,160.326]
[1688274375439,36.55335,19.207,19.192,22.039]
[1688274375639,36.55335,19.207,19.191,22.041]
[1688274376447,36.55335,19.207,19.191,78.786]